bitfinex/quotes_BTCUSD_20250414
["timestamp","ask_amount","ask_price","bid_price","bid_amount"]
[1744596136614,0.0008456,84051.0,84048.0,1.17814939]
[1744596136812,0.0008456,84051.0,84050.0,0.54490285]
[1744596137013,0.0008456,84051.0,84050.0,1.08444439]
[1744596138748,0.0018456,84051.0,84050.0,1.09144439]
[1744596138979,6e-07,84051.0,84050.0,1.09144439]
[1744596139955,0.0008458,84067.0,84066.0,0.190326]
[1744596141317,0.0008458,84067.0,84066.0,0.1904654]
[1744596142713,0.0018458,84067.0,84066.0,0.1904654]
[1744596143555,0.0018458,84067.0,84066.0,0.0001394]
[1744596145214,0.0471458,84067.0,84066.0,0.0001394]
[1744596146591,0.0008458,84067.0,84066.0,0.0001394]
[1744596146766,0.0038458,84067.0,84066.0,0.0001394]
[1744596146938,0.0048458,84067.0,84066.0,0.0001394]
[1744596147142,0.0038458,84067.0,84066.0,0.0001394]
[1744596147552,0.0048458,84067.0,84066.0,0.0001394]
[1744596147953,0.0018458,84067.0,84066.0,0.0001394]
[1744596148195,0.0048458,84067.0,84066.0,0.0011394]
[1744596148874,0.0018458,84067.0,84066.0,0.0011394]
[1744596149335,0.0028458,84067.0,84066.0,0.0011394]
[1744596150912,0.0028458,84067.0,84066.0,0.00351828]
[1744596151492,0.0028458,84067.0,84066.0,0.0011394]
[1744596154947,0.0028458,84067.0,84066.0,0.1914654]
[1744596156010,0.0028458,84067.0,84066.0,0.19384434]
[1744596156210,0.0028458,84067.0,84066.0,0.1914654]
[1744596159768,0.1931698,84067.0,84066.0,0.0011394]
[1744596160402,0.25266965,84067.0,84066.0,0.0011394]
[1744596160823,0.39950965,84067.0,84066.0,0.0011394]
[1744596161454,0.39850965,84067.0,84066.0,0.0011394]
[1744596161752,0.40150965,84067.0,84066.0,0.0011394]
[1744596161911,0.40050965,84067.0,84066.0,0.0001394]
[1744596162351,0.40350965,84067.0,84066.0,0.0001394]
[1744596162544,0.40050965,84067.0,84066.0,0.0001394]
[1744596162748,0.1536858,84067.0,84066.0,0.0001394]
[1744596163348,0.0068458,84067.0,84066.0,0.0001394]
[1744596164246,0.0038458,84067.0,84066.0,0.0001394]
[1744596164460,0.0058458,84067.0,84066.0,0.0001394]
[1744596164969,0.0028458,84067.0,84066.0,0.0001394]
[1744596165337,0.0038458,84067.0,84066.0,0.0001394]
[1744596169026,0.1018458,84067.0,84066.0,0.0001394]
[1744596170533,0.13506489,84067.0,84066.0,0.0001394]
[1744596171125,0.25590643,84067.0,84066.0,0.0001394]
[1744596172223,0.25490643,84067.0,84066.0,0.0001394]
[1744596172383,0.25790643,84067.0,84066.0,0.0001394]
[1744596172784,0.25590643,84067.0,84066.0,0.0001394]
[1744596173470,0.08596489,84067.0,84066.0,0.0001394]
[1744596173871,0.08896489,84067.0,84066.0,0.0001394]
[1744596174558,0.06681883,84067.0,84066.0,0.0001394]
[1744596175902,0.21361883,84067.0,84066.0,0.0001394]
[1744596178502,0.2025458,84067.0,84066.0,0.0001394]
[1744596180686,0.1536458,84067.0,84066.0,0.0001394]
[1744596181057,0.0068458,84067.0,84066.0,0.0001394]
[1744596182260,0.0068458,84067.0,84066.0,0.00251834]
[1744596182755,0.0068458,84067.0,84066.0,0.0001394]
[1744596183388,0.0038458,84067.0,84066.0,0.12335978]
[1744596183584,0.0068458,84067.0,84066.0,0.16845978]
[1744596183820,0.0068458,84067.0,84066.0,0.93932179]
[1744596184409,0.0068458,84067.0,84066.0,0.87968094]
[1744596184639,0.0008458,84067.0,84066.0,0.87968094]
[1744596184829,0.0028458,84067.0,84066.0,0.87968094]
[1744596185030,0.0028458,84067.0,84066.0,0.89422179]
[1744596185031,0.0008458,84067.0,84066.0,0.89422179]
[1744596185431,0.0018458,84067.0,84066.0,0.89822179]
[1744596186018,0.0028458,84067.0,84066.0,0.89822179]
[1744596186429,0.0018458,84067.0,84066.0,0.89822179]
[1744596188418,0.0018458,84067.0,84066.0,0.88368094]
[1744596188621,0.0018458,84067.0,84066.0,0.4228394]
[1744596188820,0.1921698,84067.0,84066.0,0.0041394]
[1744596189044,0.20114309,84067.0,84066.0,0.0041394]
[1744596190023,0.21372165,84067.0,84066.0,0.0041394]
[1744596190222,0.33456319,84067.0,84066.0,0.0041394]
[1744596190487,0.40637801,84067.0,84066.0,0.0041394]
[1744596190609,0.40437801,84067.0,84066.0,0.0001394]
[1744596190805,0.41543364,84067.0,84066.0,0.0001394]
[1744596191019,0.04498954,84067.0,84066.0,0.0001394]
[1744596191574,0.17982969,84067.0,84066.0,0.0001394]
[1744596191871,0.17764974,84067.0,84066.0,0.0001394]
[1744596192076,0.18064974,84067.0,84066.0,0.0001394]
[1744596192483,0.16865113,84067.0,84066.0,0.0001394]
[1744596192659,0.0418363,84067.0,84066.0,0.0001394]
[1744596193261,0.0388363,84067.0,84066.0,0.0001394]
[1744596193488,0.0418363,84067.0,84066.0,0.0001394]
[1744596193626,0.01972148,84067.0,84066.0,0.0001394]
[1744596195038,0.01748666,84067.0,84066.0,0.0001394]
[1744596195220,0.03960148,84067.0,84066.0,0.0001394]
[1744596196138,0.05065711,84067.0,84066.0,0.0001394]
[1744596196490,0.02854229,84067.0,84066.0,0.0001394]
[1744596197732,0.01972148,84067.0,84066.0,0.0001394]
[1744596198108,0.00866585,84067.0,84066.0,0.0001394]
[1744596198603,0.00566585,84067.0,84066.0,0.00251832]
[1744596198929,0.00366585,84067.0,84066.0,0.00251832]
[1744596199132,0.00366585,84067.0,84066.0,0.89660071]
[1744596199331,0.00366585,84067.0,84066.0,0.94032179]
[1744596200119,0.00266585,84067.0,84066.0,0.94032179]
[1744596200878,0.00366585,84067.0,84066.0,0.94032179]
[1744596201657,0.00566585,84067.0,84066.0,0.94032179]
[1744596201850,0.00566585,84067.0,84066.0,0.8049394]
[1744596202058,0.00066585,84067.0,84066.0,0.94032179]
[1744596202696,0.00166585,84067.0,84066.0,0.94032179]
[1744596203257,0.00166585,84067.0,84066.0,0.94132179]
[1744596207124,0.00166585,84067.0,84066.0,0.7598394]
[1744596208123,0.00166585,84067.0,84066.0,0.4198394]
[1744596208642,0.00166585,84067.0,84066.0,0.55522179]
[1744596208941,0.00166585,84067.0,84066.0,0.89522179]
[1744596209115,0.00166585,84067.0,84066.0,0.94132179]
[1744596210259,0.00166585,84067.0,84066.0,0.88068094]
[1744596210551,0.00166585,84067.0,84066.0,0.54068094]
[1744596211946,0.00166585,84067.0,84066.0,0.55522179]
[1744596215833,0.00166585,84067.0,84066.0,0.54068094]
[1744596216255,0.00166585,84067.0,84066.0,0.55522179]
[1744596218722,8.5e-07,84067.0,84066.0,0.99082179]
[1744596219746,0.0008448,84080.0,84077.0,0.01454085]
[1744596219895,0.0008448,84080.0,84078.0,0.47776062]
[1744596220093,0.0008448,84080.0,84078.0,0.47538239]
[1744596220920,0.003,84079.0,84078.0,0.47538239]
[1744596221105,0.003,84079.0,84078.0,0.47638239]
[1744596221310,0.002,84079.0,84078.0,0.47638239]
[1744596221534,0.004,84079.0,84078.0,0.47638239]
[1744596222655,0.004,84079.0,84078.0,0.48827673]
[1744596223027,0.004,84079.0,84078.0,0.90697673]
[1744596223981,0.00380967,84079.0,84078.0,0.90697673]
[1744596226412,0.00380967,84079.0,84078.0,0.89243588]
[1744596226614,0.00380967,84079.0,84078.0,0.43159434]
[1744596227232,0.00380967,84079.0,84078.0,0.4197]
[1744596228934,0.00380967,84079.0,84078.0,0.001]
[1744596240026,0.00380967,84079.0,84078.0,0.12184154]
[1744596241041,0.00380967,84079.0,84078.0,0.52198239]
[1744596242269,0.00380967,84079.0,84078.0,0.94068239]
[1744596244874,2.7e-07,84083.0,84081.0,0.01454085]
[1744596245110,2.7e-07,84083.0,84082.0,0.71407239]
[1744596246216,0.00100027,84083.0,84082.0,0.71407239]
[1744596246431,0.00100027,84083.0,84082.0,0.7474099]
[1744596246656,0.00100027,84083.0,84082.0,0.71407239]
[1744596246884,0.00200027,84083.0,84082.0,0.72307239]
[1744596247346,2.7e-07,84083.0,84082.0,0.72407239]
[1744596247643,2.7e-07,84083.0,84082.0,0.75738769]
[1744596248119,1e-06,84093.0,84092.0,0.54480785]
[1744596248345,1e-06,84093.0,84092.0,1.13274939]
[1744596249485,0.00146467,84093.0,84092.0,1.13774939]
[1744596249705,0.00146467,84093.0,84092.0,1.13974939]
[1744596251159,0.00146467,84093.0,84092.0,1.09134939]
[1744596254957,0.00146467,84093.0,84092.0,0.12784154]
[1744596255110,0.00146467,84093.0,84092.0,0.007]
[1744596255355,0.23842967,84093.0,84092.0,0.007]
[1744596256153,0.23742967,84093.0,84092.0,0.002]
[1744596256383,0.23742967,84093.0,84092.0,0.004]
[1744596256574,0.23742967,84093.0,84092.0,0.002]
[1744596257086,0.23742967,84093.0,84092.0,0.003]
[1744596257308,0.23742967,84093.0,84092.0,0.001]
[1744596258214,0.011891,84091.0,84088.0,0.011892]
[1744596258641,0.25132067,84093.0,84088.0,0.011892]
[1744596258874,0.25132067,84093.0,84089.0,0.011892]
[1744596259121,0.25132067,84093.0,84092.0,0.001]
[1744596259348,0.24932067,84093.0,84089.0,0.011892]
[1744596259554,0.012891,84091.0,84088.0,0.203168]
[1744596259753,0.001,84091.0,84088.0,0.012892]
[1744596259952,0.011891,84092.0,84088.0,0.012892]
[1744596260415,0.011891,84092.0,84088.0,0.011892]
[1744596260579,0.011891,84092.0,84088.0,0.202168]
[1744596260752,0.011891,84092.0,84088.0,0.203168]
[1744596260954,0.011891,84092.0,84089.0,0.011892]
[1744596262153,0.011891,84092.0,84088.0,0.001]
[1744596262154,0.202166,84089.0,84088.0,0.001]
[1744596262355,0.202166,84089.0,84084.0,0.011892]
[1744596262356,0.011892,84087.0,84084.0,0.011892]
[1744596263773,0.011892,84087.0,84084.0,0.013892]
[1744596265091,0.057591,84091.0,84085.0,0.202175]
[1744596265331,0.057591,84091.0,84086.0,0.011892]
[1744596265332,0.001,84087.0,84086.0,0.011892]
[1744596265887,0.057591,84091.0,84086.0,0.011892]
[1744596266086,0.057591,84091.0,84087.0,0.011892]
[1744596266434,0.058591,84091.0,84087.0,0.011892]
[1744596266668,0.058591,84091.0,84087.0,0.20217]
[1744596266866,0.0467,84091.0,84087.0,0.011892]
[1744596267073,0.001,84091.0,84090.0,0.190272]
[1744596267286,0.001,84091.0,84090.0,0.31349167]
[1744596267464,0.001,84091.0,84090.0,0.31111354]
[1744596267635,0.00046467,84093.0,84092.0,0.190267]
[1744596267836,0.00046467,84093.0,84092.0,0.31110854]
[1744596268559,0.00046467,84093.0,84092.0,0.33759678]
[1744596268994,0.00046467,84093.0,84092.0,0.67759678]
[1744596269123,6.7e-07,84093.0,84092.0,1.14419678]
[1744596269529,0.00300067,84093.0,84092.0,1.14419678]
[1744596270156,0.00300067,84093.0,84092.0,1.14519678]
[1744596271173,0.00100067,84093.0,84092.0,1.14519678]
[1744596271369,6.7e-07,84093.0,84092.0,1.14419678]
[1744596271593,6.7e-07,84093.0,84092.0,1.14719678]
[1744596272012,0.0008452,84095.0,84094.0,0.54480385]
[1744596272160,0.0008452,84095.0,84094.0,0.81242479]
[1744596272360,6e-07,84102.0,84101.0,0.40174085]
[1744596272560,6e-07,84102.0,84101.0,0.52258239]
[1744596272859,6e-07,84102.0,84101.0,0.89408239]
[1744596273063,6e-07,84102.0,84101.0,0.4187]
[1744596274754,6e-07,84102.0,84101.0,0.4197]
[1744596274955,0.0010006,84102.0,84101.0,0.4197]
[1744596277106,0.1912456,84102.0,84101.0,0.001]
[1744596277780,0.75777579,84102.0,84101.0,0.001]
[1744596278412,0.190261,84095.0,84094.0,0.0001394]
[1744596279003,0.21234808,84095.0,84094.0,0.0001394]
[1744596279159,0.34516478,84095.0,84094.0,0.0001394]
[1744596279373,0.73436478,84095.0,84094.0,0.0001394]
[1744596279575,0.011894,84070.0,84067.0,0.011895]
[1744596279981,0.011894,84070.0,84062.0,0.01235867]
[1744596279982,0.011895,84065.0,84062.0,0.00046367]
[1744596280420,0.011895,84065.0,84062.0,0.01235867]
[1744596281172,0.011895,84065.0,84062.0,0.00046367]
[1744596281375,0.059594,84071.0,84062.0,0.00046367]
[1744596281495,0.06855236,84071.0,84065.0,0.011895]
[1744596281695,0.011894,84070.0,84066.0,0.011895]
[1744596281894,0.011894,84069.0,84065.0,0.011895]
[1744596282091,0.202217,84068.0,84063.0,0.011895]
[1744596282339,0.001,84065.0,84063.0,0.011895]
[1744596282578,0.001,84065.0,84063.0,0.202226]
[1744596283140,0.011895,84068.0,84065.0,0.011895]
[1744596283327,0.001,84068.0,84066.0,0.011895]
[1744596283514,0.001,84068.0,84067.0,0.190324]
[1744596284838,0.001,84068.0,84067.0,0.31116554]
[1744596285262,0.011893,84081.0,84077.0,0.011893]
[1744596286500,0.013893,84081.0,84077.0,0.011893]
[1744596286702,0.014893,84081.0,84077.0,0.011893]
[1744596287549,0.011894,84070.0,84063.0,0.011895]
[1744596287783,0.011894,84070.0,84055.0,0.4187]
[1744596287784,0.202223,84065.0,84055.0,0.4187]
[1744596288114,0.011895,84065.0,84058.0,0.0123179]
[1744596288236,0.011895,84065.0,84062.0,0.01235867]
[1744596288441,0.011894,84070.0,84066.0,0.190326]
[1744596288648,0.012894,84070.0,84066.0,0.004]
[1744596289052,0.011894,84070.0,84064.0,0.202223]
[1744596289275,0.001,84065.0,84064.0,0.202223]
[1744596289640,0.001,84065.0,84064.0,0.33998456]
[1744596289837,0.001,84065.0,84064.0,0.33760539]
[1744596290108,0.011893,84082.0,84079.0,0.20219]
[1744596290637,0.011892,84085.0,84080.0,0.011893]
[1744596290852,0.011892,84084.0,84080.0,0.011893]
[1744596291044,0.03108453,84086.0,84083.0,0.011893]
[1744596291248,0.00903771,84086.0,84084.0,0.190285]
[1744596291602,0.1466,84091.0,84089.0,0.190273]
[1744596291803,0.1466,84091.0,84088.0,0.011892]
[1744596292028,0.158491,84091.0,84088.0,0.011892]
[1744596292209,0.348761,84091.0,84088.0,0.011892]
[1744596292408,0.158491,84091.0,84088.0,0.011892]
[1744596293993,0.16942539,84091.0,84088.0,0.011892]
[1744596294321,0.16442539,84091.0,84088.0,0.011892]
[1744596295081,0.011892,84089.0,84083.0,0.011893]
[1744596295281,0.011892,84089.0,84080.0,0.202187]
[1744596295282,0.190305,84076.0,84071.0,0.011894]
[1744596295603,0.011894,84073.0,84071.0,0.00046367]
[1744596295966,0.2022,84075.0,84071.0,0.01235767]
[1744596296151,0.011894,84076.0,84072.0,0.011894]
[1744596296345,0.202198,84076.0,84072.0,0.011894]
[1744596298027,0.202198,84076.0,84071.0,0.01335767]
[1744596298028,0.202202,84074.0,84071.0,0.00146367]
[1744596298321,0.202202,84074.0,84071.0,0.00646367]
[1744596298322,0.001,84073.0,84071.0,0.00646367]
[1744596298506,0.202202,84074.0,84071.0,0.00146367]
[1744596298718,0.202185,84082.0,84078.0,0.011893]
[1744596298899,0.011893,84081.0,84078.0,0.011893]
[1744596299095,0.202185,84081.0,84078.0,0.011893]
[1744596299429,0.011893,84080.0,84077.0,0.011893]
[1744596299832,0.001,84082.0,84078.0,0.011893]
[1744596300039,0.012893,84082.0,84079.0,0.011893]
[1744596300561,0.011893,84081.0,84078.0,0.012893]
[1744596300808,0.001,84080.0,84078.0,0.012893]
[1744596301204,0.011893,84079.0,84071.0,0.00046367]
[1744596301406,0.011893,84079.0,84071.0,0.01235767]
[1744596301407,0.011894,84076.0,84071.0,0.01235767]
[1744596301607,0.001,84080.0,84077.0,0.001]
[1744596301816,0.001,84080.0,84077.0,0.202192]
[1744596301985,0.011892,84084.0,84080.0,0.011893]
[1744596302189,0.002,84082.0,84080.0,0.011893]
[1744596302483,0.002,84082.0,84080.0,0.202185]
[1744596302816,0.002,84082.0,84075.0,0.011894]
[1744596302817,0.011893,84079.0,84075.0,0.2022]
[1744596303297,0.190313,84072.0,84071.0,0.00046367]
[1744596303953,0.02208054,84073.0,84071.0,0.00046367]
[1744596304158,0.02208054,84073.0,84072.0,0.190313]
[1744596304547,0.02208054,84075.0,84074.0,0.190308]
[1744596304733,0.1466,84076.0,84074.0,0.190308]
[1744596304953,0.1466,84076.0,84073.0,0.011894]
[1744596305127,0.011894,84075.0,84072.0,0.011894]
[1744596305665,0.202202,84075.0,84072.0,0.002]
[1744596305888,0.190313,84072.0,84071.0,0.00046367]
[1744596307797,0.191313,84072.0,84071.0,0.00046367]
[1744596308506,0.191313,84072.0,84071.0,0.00146367]
[1744596310219,0.21345685,84072.0,84071.0,0.00146367]
[1744596310868,0.02314385,84072.0,84071.0,0.19177867]
[1744596311082,0.02314385,84072.0,84071.0,0.35842021]
[1744596311336,0.001,84072.0,84071.0,0.23757867]
[1744596311537,0.001,84072.0,84071.0,0.00146367]
[1744596311984,0.191313,84072.0,84071.0,0.00146367]
[1744596312369,0.86426524,84072.0,84071.0,0.00146367]
[1744596312569,0.96076524,84072.0,84071.0,0.00146367]
[1744596312789,0.190342,84059.0,84058.0,0.0004219]
[1744596312992,0.31118354,84059.0,84058.0,0.00056042]
[1744596313120,0.33332079,84059.0,84058.0,0.00056042]
[1744596313997,0.31118354,84059.0,84058.0,0.00056042]
[1744596314204,0.606828,84066.0,84063.0,0.202227]
[1744596314205,0.4165,84066.0,84063.0,0.202227]
[1744596314335,0.011894,84071.0,84067.0,0.011895]
[1744596314535,0.011894,84069.0,84063.0,0.011895]
[1744596314737,0.011895,84065.0,84062.0,0.011895]
[1744596314961,0.190331,84064.0,84058.0,0.00156042]
[1744596315159,0.202235,84061.0,84058.0,0.00156042]
[1744596315391,0.190342,84059.0,84058.0,0.00156042]
[1744596315846,0.20224298,84059.0,84058.0,0.00056042]
[1744596316021,0.22435715,84059.0,84058.0,0.00056042]
[1744596316636,0.02211417,84059.0,84058.0,0.00056042]
[1744596317049,0.003,84064.0,84061.0,0.011896]
[1744596317294,0.001,84064.0,84062.0,0.190335]
[1744596317498,0.011893,84081.0,84078.0,0.011893]
[1744596317704,0.13273454,84083.0,84078.0,0.011893]
[1744596317837,0.14664,84084.0,84081.0,0.202183]
[1744596318043,0.14664,84084.0,84083.0,0.190288]
[1744596318239,0.011892,84087.0,84083.0,0.190288]
[1744596318430,0.1466,84084.0,84083.0,0.202181]
[1744596318885,0.00894111,84087.0,84086.0,0.190281]
[1744596319286,0.1466,84090.0,84089.0,0.190274]
[1744596319461,0.1466,84090.0,84087.0,0.011892]
[1744596319681,1.27945965,84100.0,84099.0,0.190251]
[1744596319879,0.05529965,84100.0,84099.0,0.190251]
[1744596320077,0.05576341,84100.0,84099.0,0.190251]
[1744596320658,0.00046376,84100.0,84099.0,0.190251]
[1744596321268,0.00046376,84100.0,84099.0,0.31347042]
[1744596321468,0.00546376,84100.0,84099.0,0.31209254]
[1744596321952,0.00446376,84100.0,84099.0,0.31109254]
[1744596322153,0.00646376,84100.0,84099.0,0.31109254]
[1744596322354,0.00646376,84100.0,84099.0,1.13313339]
[1744596322355,0.00246376,84100.0,84099.0,1.13313339]
[1744596322793,0.00546376,84100.0,84099.0,1.13313339]
[1744596323276,0.00246376,84100.0,84099.0,1.13313339]
[1744596323707,7.6e-07,84100.0,84099.0,1.13313339]
[1744596323906,7.6e-07,84100.0,84099.0,1.17933339]
[1744596324439,8e-07,84113.0,84109.0,0.35454085]
[1744596324642,6e-07,84118.0,84117.0,0.54475185]
[1744596324871,6e-07,84118.0,84117.0,1.08429339]
[1744596325041,4.696e-05,84118.0,84117.0,1.08429339]
[1744596325471,4.696e-05,84118.0,84117.0,1.09605364]
[1744596326697,4.696e-05,84118.0,84117.0,1.09805364]
[1744596327951,0.00104696,84118.0,84117.0,1.10605364]
[1744596330368,0.00104696,84118.0,84117.0,1.09429339]
[1744596330866,0.00104696,84118.0,84117.0,1.10601449]
[1744596331779,0.00104696,84118.0,84117.0,1.12436372]
[1744596332303,9.6e-07,84118.0,84117.0,1.12436372]
[1744596332507,9.6e-07,84118.0,84117.0,1.17126372]
[1744596332676,9.6e-07,84118.0,84117.0,1.21976372]
[1744596339003,9.6e-07,84118.0,84117.0,1.36624372]
[1744596341478,9.6e-07,84118.0,84117.0,1.10982287]
[1744596341878,9.6e-07,84118.0,84117.0,0.57028133]
[1744596342082,9.6e-07,84118.0,84117.0,0.23028133]
[1744596342520,9.6e-07,84118.0,84117.0,0.55856023]
[1744596343436,0.000844,84127.0,84124.0,0.190195]
[1744596343866,0.000844,84127.0,84124.0,0.20870512]
[1744596344862,0.000844,84127.0,84124.0,0.21170512]
[1744596347896,0.000844,84127.0,84124.0,0.3494648]
[1744596348098,0.000844,84127.0,84124.0,0.68708751]
[1744596352099,0.000844,84127.0,84124.0,1.10578751]
[1744596358323,0.000844,84127.0,84124.0,1.13912389]
[1744596358539,0.000844,84127.0,84126.0,0.19019]
[1744596358740,1e-06,84128.0,84127.0,0.35454085]
[1744596358923,1e-06,84128.0,84127.0,0.49388784]
[1744596359120,1e-06,84128.0,84127.0,0.91258784]
[1744596359939,1e-06,84128.0,84127.0,0.91458784]
[1744596360542,0.001001,84128.0,84127.0,0.91458784]
[1744596360740,0.001001,84128.0,84127.0,0.91258784]
[1744596360938,0.001001,84128.0,84127.0,0.91658784]
[1744596362197,1e-06,84128.0,84127.0,0.91658784]
[1744596367687,1e-06,84128.0,84127.0,0.44120545]
[1744596367805,0.190187,84128.0,84127.0,0.02250545]
[1744596368014,0.431387,84128.0,84127.0,0.02250545]
[1744596368250,0.45220175,84128.0,84127.0,0.004]
[1744596368726,0.57304329,84128.0,84127.0,0.004]
[1744596368892,0.011889,84106.0,84098.0,0.01189]
[1744596369139,0.011889,84105.0,84101.0,0.01189]
[1744596369348,0.202125,84106.0,84102.0,0.21754704]
[1744596369540,0.202125,84106.0,84102.0,0.02730304]
[1744596369741,0.011889,84106.0,84102.0,0.21754604]
[1744596369945,0.0948,84107.0,84106.0,0.190236]
[1744596370164,0.0948,84107.0,84106.0,0.20565257]
[1744596370526,0.0948,84107.0,84106.0,0.01541657]
[1744596370722,0.0948,84107.0,84104.0,0.01189]
[1744596370958,0.0948,84107.0,84105.0,0.01541539]
[1744596371212,0.0948,84107.0,84104.0,0.202129]
[1744596371411,0.0948,84107.0,84106.0,0.01541539]
[1744596371616,0.0948,84107.0,84104.0,0.20213]
[1744596371818,0.0948,84107.0,84106.0,0.20565257]
[1744596372184,0.0452,84114.0,84112.0,0.190222]
[1744596372519,0.05852774,84128.0,84125.0,0.011887]
[1744596372663,0.049601,84128.0,84127.0,0.190188]
[1744596373086,0.049601,84128.0,84127.0,0.20575014]
[1744596373588,1e-06,84128.0,84127.0,0.20575014]
[1744596374027,0.006001,84128.0,84127.0,0.20675014]
[1744596374750,0.006001,84128.0,84127.0,0.01656214]
[1744596375035,0.16154418,84128.0,84127.0,0.01656214]
[1744596375570,0.152441,84128.0,84127.0,0.001]
[1744596375981,0.156441,84128.0,84127.0,0.001]
[1744596376184,0.156441,84128.0,84127.0,0.01647234]
[1744596376739,0.010001,84128.0,84127.0,0.01647234]
[1744596377842,0.010001,84128.0,84127.0,0.13731388]
[1744596377993,0.010001,84128.0,84127.0,0.479691]
[1744596378190,0.010001,84128.0,84127.0,0.48474026]
[1744596378832,0.010001,84128.0,84127.0,0.49928111]
[1744596379369,1e-06,84128.0,84127.0,0.51033468]
[1744596379907,0.003001,84128.0,84127.0,0.51033468]
[1744596380230,0.002001,84128.0,84127.0,0.51033468]
[1744596380430,1e-06,84128.0,84127.0,0.51033468]
[1744596380758,0.001001,84128.0,84127.0,0.92903468]
[1744596381636,0.001001,84128.0,84127.0,0.93003468]
[1744596381846,0.001001,84128.0,84127.0,0.91549383]
[1744596382187,0.001001,84128.0,84127.0,0.44259872]
[1744596383409,0.001001,84128.0,84127.0,0.43517234]
[1744596384339,0.001001,84128.0,84127.0,0.01647234]
[1744596386122,0.001001,84128.0,84127.0,0.02389877]
[1744596387653,0.001001,84128.0,84127.0,0.14474031]
[1744596387846,0.001001,84128.0,84127.0,0.16165831]
[1744596387971,0.001001,84128.0,84127.0,0.50165831]
[1744596388170,0.001001,84128.0,84127.0,0.49928116]
[1744596388876,0.000844,84134.0,84133.0,0.54471585]
[1744596389075,0.000844,84134.0,84133.0,0.66555739]
[1744596389327,0.000844,84134.0,84133.0,0.68092446]
[1744596389531,0.000844,84134.0,84133.0,0.68835089]
[1744596390119,0.002844,84134.0,84133.0,0.68835089]
[1744596391474,0.003844,84134.0,84133.0,0.68835089]
[1744596392052,0.000844,84134.0,84133.0,0.68835089]
[1744596392249,0.000844,84134.0,84133.0,0.69206322]
[1744596392457,0.000844,84134.0,84133.0,0.69406322]
[1744596393217,0.000844,84134.0,84133.0,1.11276322]
[1744596396423,6e-07,84139.0,84138.0,0.54470385]
[1744596396645,6e-07,84139.0,84138.0,0.66554539]
[1744596396879,6e-07,84139.0,84138.0,0.68079924]
[1744596397110,6e-07,84139.0,84138.0,0.68822567]
[1744596397338,6e-07,84139.0,84138.0,0.691938]
[1744596397817,0.4165,84181.0,84138.0,0.691938]
[1744596397818,2e-07,84169.0,84168.0,0.190095]
[1744596398044,0.00013958,84169.0,84168.0,1.13345305]
[1744596398269,0.00013958,84169.0,84168.0,1.14626166]
[1744596398492,0.00013958,84169.0,84168.0,1.15740042]
[1744596398970,0.00113958,84169.0,84168.0,1.17299033]
[1744596399208,0.00113958,84169.0,84168.0,0.03032303]
[1744596399411,0.00113958,84169.0,84168.0,0.03132303]
[1744596399630,0.00113958,84169.0,84168.0,0.02018427]
[1744596399803,0.00113958,84169.0,84168.0,0.14102581]
[1744596399983,0.00113958,84169.0,84168.0,0.15556666]
[1744596400194,0.00113958,84169.0,84168.0,0.16199309]
[1744596400924,0.00013958,84169.0,84168.0,0.15799309]
[1744596401096,0.00013958,84169.0,84168.0,0.16099309]
[1744596401477,4.018e-05,84169.0,84168.0,0.15899309]
[1744596401773,4.018e-05,84169.0,84168.0,0.16099309]
[1744596402152,4.018e-05,84169.0,84168.0,0.1647043]
[1744596402384,4.018e-05,84169.0,84168.0,0.02832191]
[1744596402596,4.018e-05,84169.0,84168.0,0.02932191]
[1744596402768,4.018e-05,84169.0,84168.0,0.02448023]
[1744596402971,4.018e-05,84169.0,84168.0,0.21086402]
[1744596403326,4.018e-05,84169.0,84168.0,0.33170556]
[1744596403555,4.018e-05,84169.0,84168.0,0.34624641]
[1744596403910,4.018e-05,84169.0,84168.0,0.76494641]
[1744596405141,4.018e-05,84169.0,84168.0,0.62956402]
[1744596405353,4.018e-05,84169.0,84168.0,0.63327535]
[1744596405560,4.018e-05,84169.0,84168.0,0.02448035]
[1744596406409,4.018e-05,84169.0,84168.0,0.02080851]
[1744596406849,4.018e-05,84169.0,84168.0,0.01780851]
[1744596407074,0.00104018,84169.0,84168.0,0.01780851]
[1744596407192,0.00104018,84169.0,84168.0,0.01880851]
[1744596408330,0.12188172,84169.0,84168.0,0.01880851]
[1744596408533,0.12188172,84169.0,84168.0,0.00842643]
[1744596408732,0.12188172,84169.0,84168.0,0.001]
[1744596409181,0.13402195,84169.0,84168.0,0.001]
[1744596409827,0.18851442,84169.0,84168.0,0.001]
[1744596410028,0.18851442,84169.0,84123.0,0.0461]
[1744596410029,0.011885,84136.0,84133.0,0.01171971]
[1744596410234,0.011885,84139.0,84129.0,0.011886]
[1744596410235,0.011885,84139.0,84135.0,0.011885]
[1744596410450,0.011885,84139.0,84136.0,0.011885]
[1744596410812,0.093,84141.0,84137.0,0.011885]
[1744596411017,0.0475,84141.0,84138.0,0.202048]
[1744596411292,0.0455,84150.0,84147.0,0.011883]
[1744596411535,0.0475,84151.0,84148.0,0.011883]
[1744596411741,0.0475,84151.0,84149.0,0.00742552]
[1744596412117,0.0475,84151.0,84150.0,0.00743571]
[1744596412314,0.0475,84151.0,84150.0,0.01486123]
[1744596412489,0.0475,84151.0,84150.0,0.00742552]
[1744596412692,0.14952,84153.0,84152.0,0.190132]
[1744596413118,0.14952,84153.0,84152.0,0.19757124]
[1744596413757,0.14952,84153.0,84152.0,0.20499665]
[1744596414168,0.15252,84153.0,84152.0,0.20599665]
[1744596415862,0.15452,84153.0,84152.0,0.20599665]
[1744596416822,0.15452,84153.0,84152.0,0.01586465]
[1744596417234,0.15452,84153.0,84152.0,0.00842541]
[1744596417594,0.15452,84153.0,84152.0,0.20599665]
[1744596417798,0.15452,84153.0,84152.0,0.01586465]
[1744596418237,0.344649,84153.0,84152.0,0.01586465]
[1744596418444,0.394349,84153.0,84152.0,0.00843924]
[1744596418577,0.344649,84153.0,84152.0,0.001]
[1744596418782,0.15452,84153.0,84152.0,0.001]
[1744596419194,0.15452,84153.0,84152.0,0.19857124]
[1744596419395,0.15452,84153.0,84152.0,0.20599652]
[1744596420492,0.15452,84153.0,84152.0,0.01586452]
[1744596420493,0.25082,84153.0,84152.0,0.01586452]
[1744596420916,0.25082,84153.0,84152.0,0.00842528]
[1744596421117,0.20112,84153.0,84152.0,0.00842528]
[1744596421275,0.15152,84153.0,84152.0,0.00742528]
[1744596421491,0.15152,84153.0,84152.0,0.01486452]